Workbook

Sheet анализ
A1: Информация по учету и перечислению поступлений
A2: в бюджеты бюджетной системы Российской Федерации на территории Курганской области
A3: с казначейского счета для осуществления и отражения операций по учету и распределению поступлений
A4: на 1 января 2025 года
A5: Показатели | B5: на 1 января 2025 года | D5: на 1 января 2024 года | F5: Изменение
B6: Сумма, млн.руб. | C6: Уд. вес , % | D6: Сумма, млн. руб. | E6: Уд. вес , % | F6: Абсолютное (+,-), млн. руб. | G6: Относи-тельное, %
A7: 1 | B7: 2 | C7: 3 | D7: 4 | E7: 5 | F7: 6 | G7: 7
A8: Поступило платежей на казначейский счет для осуществления и отражения операций по учету и распределению поступлений | B8: 86190.3 | C8: 1 | D8: 73867.3 | E8: 1 | F8: =B8-D8 -> 12323 | G8: =F8/D8 -> 0.166826187
A9: Из них:
A10: Возвращено платежей плательщикам и участникам системы казначейских платежей | B10: 881.9 | C10: =B10/B$8 -> 0.01023200987 | D10: 1030.1 | E10: =D10/D$8 -> 0.01394527755 | F10: =B10-D10 -> -148.2 | G10: =F10/D10 -> -0.1438695272
A11: Перечислено в бюджеты, всего: | B11: 85308.4 | C11: =B11/B$8 -> 0.9897679901 | D11: 72837.2 | E11: =D11/D$8 -> 0.9860547225 | F11: =B11-D11 -> 12471.2 | G11: =F11/D11 -> 0.1712202007
A12: в том числе:
A13: Федеральный бюджет | B13: 1513.2 | C13: =B13/B$8 -> 0.01755649998 | D13: 1938.8 | E13: =D13/D$8 -> 0.02624706738 | F13: =B13-D13 -> -425.6 | G13: =F13/D13 -> -0.2195172272
A14: Бюджет субъекта Российской Федерации | B14: 28153.3 | C14: 0.326641165 | D14: 21526.7 | E14: 0.2914239454 | F14: 6626.6 | G14: 0.3078316695
A15: Бюджеты муниципальных образований | B15: 31427 | C15: 0.3646233973 | D15: 28279.2 | E15: 0.3828378728 | F15: 3147.8 | G15: 0.111311494
A16: Фонд пенсионного и социального страхования Российской Федерации | B16: 1203.8 | C16: 0.013 | D16: 872.2 | E16: =D16/D$8 -> 0.01180766049 | F16: =B16-D16 -> 331.6 | G16: 0.3801880303
A17: Федеральный фонд обязательного медицинского страхования | B17: 5083.2 | C17: =B17/B$8 -> 0.05897647415 | D17: 4763.4 | E17: =D17/D8 -> 0.06448590919 | F17: 319.8 | G17: 0.06713691901
A18: Территориальный фонд обязательного медицинского страхования | B18: 17927.9 | C18: =B18/B$8 -> 0.2080036849 | D18: 15456.9 | E18: 0.21 | F18: 2471 | G18: 0.1598638796
A19: Остаток на счете | B19: 0 | C19: =B19/B$8 -> 0 | D19: 0 | E19: 0 | F19: =B19-D19 -> 0 | G19: 0
